[Event "Titled Tuesday Blitz February 15 Late 2022"]
[White "Vovk, Orest"]
[Black "Golubev, Mikhail"]
[WhiteFideId "14113490"]
[BlackFideId "14100983"]
[WhiteElo "2203"]
[BlackElo "2374"]
[Result "1-0"]
[Round "03"]
[TimeControl "180+1"]
[Date "2022.02.16"]
[WhiteClock "0:00:05"]
[BlackClock "0:00:01"]

1. h4 {[%clk 0:02:41]}  Nf6 {[%clk 0:02:57]} 2. h5 {[%clk 0:02:41]}  e5 {[%clk 0:02:53]} 3. h6 {[%clk 0:02:35]}  g6 {[%clk 0:02:50]} 4. d4 {[%clk 0:02:33]}  exd4 {[%clk 0:02:48]} 5. Qxd4 {[%clk 0:02:34]}  Nc6 {[%clk 0:02:46]} 6. Qa4 {[%clk 0:02:34]}  b5 {[%clk 0:02:37]} 7. Qh4 {[%clk 0:02:30]}  Be7 {[%clk 0:02:25]} 8. Bg5 {[%clk 0:02:28]}  d5 {[%clk 0:02:20]} 9. Nf3 {[%clk 0:02:21]}  Ne4 {[%clk 0:02:16]} 10. Bxe7 {[%clk 0:02:19]}  Qxe7 {[%clk 0:02:16]} 11. Qxe7+ {[%clk 0:02:19]}  Kxe7 {[%clk 0:02:16]} 12. a3 {[%clk 0:02:08]}  d4 {[%clk 0:02:08]} 13. Nbd2 {[%clk 0:02:05]}  Nxd2 {[%clk 0:02:02]} 14. Nxd2 {[%clk 0:02:00]}  Bf5 {[%clk 0:02:01]} 15. O-O-O {[%clk 0:01:58]}  Rhd8 {[%clk 0:01:57]} 16. g3 {[%clk 0:01:44]}  Ne5 {[%clk 0:01:56]} 17. Bh3 {[%clk 0:01:37]}  Bxh3 {[%clk 0:01:54]} 18. Rxh3 {[%clk 0:01:37]}  c5 {[%clk 0:01:54]} 19. Ne4 {[%clk 0:01:26]}  Rac8 {[%clk 0:01:51]} 20. Rh4 {[%clk 0:01:23]}  f5 {[%clk 0:01:47]} 21. Ng5 {[%clk 0:01:23]}  Ng4 {[%clk 0:01:36]} 22. f3 {[%clk 0:01:01]}  Nf6 {[%clk 0:01:32]} 23. e4 {[%clk 0:00:53]}  fxe4 {[%clk 0:01:16]} 24. fxe4 {[%clk 0:00:50]}  Rh8 {[%clk 0:01:01]} 25. Rf1 {[%clk 0:00:45]}  Rcf8 {[%clk 0:01:00]} 26. e5 {[%clk 0:00:40]}  Nd7 {[%clk 0:00:54]} 27. Rxf8 {[%clk 0:00:40]}  Rxf8 {[%clk 0:00:54]} 28. Nxh7 {[%clk 0:00:40]}  Nxe5 {[%clk 0:00:23]} 29. Ng5 {[%clk 0:00:37]}  Nc4 {[%clk 0:00:21]} 30. Re4+ {[%clk 0:00:23]}  Kd7 {[%clk 0:00:21]} 31. Rf4 {[%clk 0:00:19]}  Re8 {[%clk 0:00:18]} 32. Rf1 {[%clk 0:00:17]}  Nd6 {[%clk 0:00:16]} 33. h7 {[%clk 0:00:15]}  Rh8 {[%clk 0:00:16]} 34. Rf6 {[%clk 0:00:13]}  Re8 {[%clk 0:00:14]} 35. Rxg6 {[%clk 0:00:11]}  Nc4 {[%clk 0:00:14]} 36. Kb1 {[%clk 0:00:09]}  Re1+ {[%clk 0:00:09]} 37. Ka2 {[%clk 0:00:09]}  Rh1 {[%clk 0:00:09]} 38. Rg8 {[%clk 0:00:09]}  Ne3 {[%clk 0:00:09]} 39. h8=Q {[%clk 0:00:08]}  Rxh8 {[%clk 0:00:09]} 40. Rxh8 {[%clk 0:00:09]}  Nxc2 {[%clk 0:00:10]} 41. Rh7+ {[%clk 0:00:09]}  Kc6 {[%clk 0:00:09]} 42. Ne4 {[%clk 0:00:09]}  c4 {[%clk 0:00:07]} 43. Rh5 {[%clk 0:00:08]}  d3 {[%clk 0:00:06]} 44. g4 {[%clk 0:00:07]}  a5 {[%clk 0:00:01]} 45. a4 {[%clk 0:00:05]} 1-0


[Site "https://www.chess.com"]

[Event "Titled Tuesday Blitz February 15 Late 2022"]
[White "Wartiovaara, Oliver"]
[Black "Mikhalsky, Vladimir"]
[WhiteFideId "513024"]
[BlackFideId "14144352"]
[WhiteElo "1971"]
[BlackElo "2248"]
[Result "0-1"]
[Round "03"]
[TimeControl "180+1"]
[Date "2022.02.16"]
[WhiteClock "0:00:11"]
[BlackClock "0:00:19"]

1. e4 {[%clk 0:03:00]}  c5 {[%clk 0:02:57]} 2. Nf3 {[%clk 0:02:58]}  Nc6 {[%clk 0:02:57]} 3. Bb5 {[%clk 0:02:58]}  g6 {[%clk 0:02:56]} 4. O-O {[%clk 0:02:56]}  Bg7 {[%clk 0:02:56]} 5. c3 {[%clk 0:02:56]}  a6 {[%clk 0:02:54]} 6. Bxc6 {[%clk 0:02:55]}  dxc6 {[%clk 0:02:54]} 7. d3 {[%clk 0:02:52]}  Nf6 {[%clk 0:02:28]} 8. h3 {[%clk 0:02:51]}  O-O {[%clk 0:02:27]} 9. Be3 {[%clk 0:02:46]}  c4 {[%clk 0:02:27]} 10. e5 {[%clk 0:02:37]}  Nd5 {[%clk 0:02:23]} 11. Bd4 {[%clk 0:02:19]}  cxd3 {[%clk 0:02:20]} 12. Qxd3 {[%clk 0:02:20]}  Bf5 {[%clk 0:02:20]} 13. Qe2 {[%clk 0:02:17]}  Nf4 {[%clk 0:02:18]} 14. Qe3 {[%clk 0:02:17]}  Bh6 {[%clk 0:02:03]} 15. Kh2 {[%clk 0:02:07]}  Kg7 {[%clk 0:01:56]} 16. g4 {[%clk 0:01:54]}  Nd5 {[%clk 0:01:30]} 17. Qe2 {[%clk 0:01:44]}  Bf4+ {[%clk 0:01:28]} 18. Kh1 {[%clk 0:01:39]}  Be6 {[%clk 0:01:28]} 19. Nbd2 {[%clk 0:01:33]}  h5 {[%clk 0:01:25]} 20. gxh5 {[%clk 0:01:19]}  Rh8 {[%clk 0:01:25]} 21. hxg6 {[%clk 0:01:11]}  Bxh3 {[%clk 0:01:18]} 22. e6+ {[%clk 0:00:43]}  f6 {[%clk 0:01:16]} 23. Kg1 {[%clk 0:00:34]}  Rh6 {[%clk 0:01:09]} 24. Ne4 {[%clk 0:00:27]}  Rxg6+ {[%clk 0:01:08]} 25. Ng3 {[%clk 0:00:27]}  Bxg3 {[%clk 0:00:58]} 26. fxg3 {[%clk 0:00:28]}  Rxg3+ {[%clk 0:00:58]} 27. Kh2 {[%clk 0:00:28]}  Rg2+ {[%clk 0:00:56]} 28. Qxg2+ {[%clk 0:00:28]}  Bxg2 {[%clk 0:00:56]} 29. Kxg2 {[%clk 0:00:28]}  Nf4+ {[%clk 0:00:47]} 30. Kf2 {[%clk 0:00:26]}  Nxe6 {[%clk 0:00:42]} 31. Rg1+ {[%clk 0:00:20]}  Kf7 {[%clk 0:00:41]} 32. Rh1 {[%clk 0:00:19]}  Qg8 {[%clk 0:00:27]} 33. Rag1 {[%clk 0:00:17]}  Ng5 {[%clk 0:00:27]} 34. Nxg5+ {[%clk 0:00:14]}  fxg5 {[%clk 0:00:27]} 35. Rh8 {[%clk 0:00:14]}  Qxh8 {[%clk 0:00:21]} 36. Bxh8 {[%clk 0:00:15]}  Rxh8 {[%clk 0:00:21]} 37. Rxg5 {[%clk 0:00:16]}  Rh2+ {[%clk 0:00:21]} 38. Rg2 {[%clk 0:00:12]}  Rxg2+ {[%clk 0:00:21]} 39. Kxg2 {[%clk 0:00:12]}  Kf6 {[%clk 0:00:21]} 40. Kf3 {[%clk 0:00:13]}  Ke5 {[%clk 0:00:21]} 41. Ke3 {[%clk 0:00:14]}  c5 {[%clk 0:00:21]} 42. b3 {[%clk 0:00:13]}  b5 {[%clk 0:00:20]} 43. Kd3 {[%clk 0:00:11]}  Kd5 {[%clk 0:00:19]} 44. c4+ {[%clk 0:00:11]}  bxc4+ {[%clk 0:00:19]} 45. bxc4+ {[%clk 0:00:12]}  Ke5 {[%clk 0:00:19]} 46. Ke3 {[%clk 0:00:13]}  a5 {[%clk 0:00:18]} 47. a4 {[%clk 0:00:11]}  e6 {[%clk 0:00:18]} 48. Kd3 {[%clk 0:00:10]}  Kf4 {[%clk 0:00:18]} 49. Ke2 {[%clk 0:00:10]}  Ke4 {[%clk 0:00:18]} 50. Kd2 {[%clk 0:00:11]}  Kd4 {[%clk 0:00:19]} 0-1


[Site "https://www.chess.com"]

[Event "Titled Tuesday Blitz February 15 Late 2022"]
[White "Wieczorek, Oskar"]
[Black "Fiorito, Fabian"]
[WhiteFideId "1133950"]
[BlackFideId "100200"]
[WhiteElo "2319"]
[BlackElo "2395"]
[Result "1-0"]
[Round "03"]
[TimeControl "180+1"]
[Date "2022.02.16"]
[WhiteClock "0:00:01"]
[BlackClock "0:01:01"]

1. e4 {[%clk 0:03:00]}  c6 {[%clk 0:02:59]} 2. d4 {[%clk 0:03:01]}  d5 {[%clk 0:03:00]} 3. Nd2 {[%clk 0:03:01]}  dxe4 {[%clk 0:03:00]} 4. Nxe4 {[%clk 0:03:02]}  Nf6 {[%clk 0:03:00]} 5. Nxf6+ {[%clk 0:03:03]}  exf6 {[%clk 0:03:01]} 6. Be2 {[%clk 0:03:04]}  Bd6 {[%clk 0:03:00]} 7. Bf3 {[%clk 0:03:04]}  O-O {[%clk 0:03:00]} 8. Ne2 {[%clk 0:03:05]}  Bf5 {[%clk 0:02:59]} 9. O-O {[%clk 0:03:03]}  Nd7 {[%clk 0:02:58]} 10. c4 {[%clk 0:02:59]}  Re8 {[%clk 0:02:58]} 11. Be3 {[%clk 0:02:51]}  Nf8 {[%clk 0:02:57]} 12. c5 {[%clk 0:02:49]}  Bc7 {[%clk 0:02:55]} 13. d5 {[%clk 0:02:49]}  cxd5 {[%clk 0:02:47]} 14. Bxd5 {[%clk 0:02:33]}  Bg4 {[%clk 0:02:39]} 15. Re1 {[%clk 0:01:52]}  Ba5 {[%clk 0:02:39]} 16. Bxb7 {[%clk 0:01:40]}  Bxe1 {[%clk 0:02:04]} 17. Bxa8 {[%clk 0:01:32]}  Bxf2+ {[%clk 0:02:04]} 18. Kxf2 {[%clk 0:01:11]}  Qxa8 {[%clk 0:02:04]} 19. Qd4 {[%clk 0:01:10]}  Bxe2 {[%clk 0:02:01]} 20. Kxe2 {[%clk 0:01:11]}  Qxg2+ {[%clk 0:02:02]} 21. Kd3 {[%clk 0:01:11]}  Ne6 {[%clk 0:02:01]} 22. Qc4 {[%clk 0:01:12]}  Rd8+ {[%clk 0:02:00]} 23. Kc3 {[%clk 0:01:12]}  Qf3 {[%clk 0:01:56]} 24. Re1 {[%clk 0:01:12]}  Nf4 {[%clk 0:01:41]} 25. Qxf4 {[%clk 0:01:11]}  Qd5 {[%clk 0:01:36]} 26. Qc4 {[%clk 0:01:00]}  Qe5+ {[%clk 0:01:33]} 27. Kc2 {[%clk 0:01:00]}  Qf5+ {[%clk 0:01:30]} 28. Kc1 {[%clk 0:00:59]}  h6 {[%clk 0:01:13]} 29. b4 {[%clk 0:00:58]}  Qe5 {[%clk 0:01:12]} 30. Kc2 {[%clk 0:00:53]}  a5 {[%clk 0:01:09]} 31. Bd2 {[%clk 0:00:47]}  Qxh2 {[%clk 0:01:04]} 32. Re2 {[%clk 0:00:42]}  Qg3 {[%clk 0:00:56]} 33. b5 {[%clk 0:00:39]}  Qa3 {[%clk 0:00:55]} 34. c6 {[%clk 0:00:37]}  Qd6 {[%clk 0:00:49]} 35. Bxa5 {[%clk 0:00:30]}  Ra8 {[%clk 0:00:42]} 36. c7 {[%clk 0:00:29]}  Kh7 {[%clk 0:00:40]} 37. Qd3+ {[%clk 0:00:28]}  Qxd3+ {[%clk 0:00:36]} 38. Kxd3 {[%clk 0:00:28]}  Rxa5 {[%clk 0:00:36]} 39. c8=Q {[%clk 0:00:28]}  Rxb5 {[%clk 0:00:36]} 40. a4 {[%clk 0:00:24]}  Ra5 {[%clk 0:00:36]} 41. Qc6 {[%clk 0:00:23]}  h5 {[%clk 0:00:35]} 42. Kc4 {[%clk 0:00:22]}  h4 {[%clk 0:00:34]} 43. Kb4 {[%clk 0:00:23]}  Rh5 {[%clk 0:00:34]} 44. a5 {[%clk 0:00:22]}  h3 {[%clk 0:00:34]} 45. a6 {[%clk 0:00:22]}  h2 {[%clk 0:00:34]} 46. Re1 {[%clk 0:00:21]}  Rh4+ {[%clk 0:00:33]} 47. Ka5 {[%clk 0:00:20]}  g5 {[%clk 0:00:34]} 48. a7 {[%clk 0:00:20]}  Rh3 {[%clk 0:00:35]} 49. a8=Q {[%clk 0:00:19]}  Ra3+ {[%clk 0:00:36]} 50. Kb6 {[%clk 0:00:20]}  Rxa8 {[%clk 0:00:36]} 51. Qxa8 {[%clk 0:00:21]}  Kg6 {[%clk 0:00:36]} 52. Qc6 {[%clk 0:00:22]}  g4 {[%clk 0:00:37]} 53. Qg2 {[%clk 0:00:21]}  Kg5 {[%clk 0:00:38]} 54. Qxh2 {[%clk 0:00:22]}  f5 {[%clk 0:00:39]} 55. Rf1 {[%clk 0:00:22]}  f4 {[%clk 0:00:39]} 56. Qxf4+ {[%clk 0:00:22]}  Kh5 {[%clk 0:00:40]} 57. Qxf7+ {[%clk 0:00:22]}  Kh4 {[%clk 0:00:40]} 58. Qf4 {[%clk 0:00:22]}  Kh3 {[%clk 0:00:40]} 59. Rh1+ {[%clk 0:00:21]}  Kg2 {[%clk 0:00:41]} 60. Qxg4+ {[%clk 0:00:21]}  Kxh1 {[%clk 0:00:41]} 61. Kc7 {[%clk 0:00:16]}  Kh2 {[%clk 0:00:41]} 62. Kd6 {[%clk 0:00:17]}  Kh1 {[%clk 0:00:42]} 63. Ke7 {[%clk 0:00:17]}  Kh2 {[%clk 0:00:43]} 64. Kf8 {[%clk 0:00:18]}  Kh1 {[%clk 0:00:44]} 65. Kg7 {[%clk 0:00:19]}  Kh2 {[%clk 0:00:45]} 66. Kh8 {[%clk 0:00:20]}  Kh1 {[%clk 0:00:46]} 67. Kh7 {[%clk 0:00:21]}  Kh2 {[%clk 0:00:47]} 68. Kg6 {[%clk 0:00:22]}  Kh1 {[%clk 0:00:47]} 69. Kf5 {[%clk 0:00:23]}  Kh2 {[%clk 0:00:48]} 70. Ke4 {[%clk 0:00:24]}  Kh1 {[%clk 0:00:49]} 71. Kd3 {[%clk 0:00:25]}  Kh2 {[%clk 0:00:50]} 72. Kc2 {[%clk 0:00:25]}  Kh1 {[%clk 0:00:51]} 73. Kc1 {[%clk 0:00:26]}  Kh2 {[%clk 0:00:52]} 74. Kd2 {[%clk 0:00:27]}  Kh1 {[%clk 0:00:53]} 75. Kd1 {[%clk 0:00:28]}  Kh2 {[%clk 0:00:54]} 76. Ke2 {[%clk 0:00:29]}  Kh1 {[%clk 0:00:55]} 77. Ke1 {[%clk 0:00:30]}  Kh2 {[%clk 0:00:56]} 78. Kf2 {[%clk 0:00:30]}  Kh1 {[%clk 0:00:56]} 79. Qg5 {[%clk 0:00:29]}  Kh2 {[%clk 0:00:57]} 80. Qg6 {[%clk 0:00:29]}  Kh3 {[%clk 0:00:58]} 81. Qg7 {[%clk 0:00:29]}  Kh4 {[%clk 0:00:59]} 82. Qg8 {[%clk 0:00:30]}  Kh5 {[%clk 0:01:00]} 83. Kf3 {[%clk 0:00:30]}  Kh6 {[%clk 0:01:00]} 84. Kf4 {[%clk 0:00:30]}  Kh5 {[%clk 0:01:01]} 85. Qg5# {[%clk 0:00:01]} 1-0


[Site "https://www.chess.com"]

[Event "Titled Tuesday Blitz February 15 Late 2022"]
[White "Xie, Bryan"]
[Black "Petersson, Kjell"]
[WhiteFideId "30941296"]
[BlackFideId "1705148"]
[WhiteElo "1899"]
[BlackElo "2009"]
[Result "1-0"]
[Round "03"]
[TimeControl "180+1"]
[Date "2022.02.16"]
[WhiteClock "0:00:51"]
[BlackClock "0:00:57"]

1. d4 {[%clk 0:03:00]}  f5 {[%clk 0:02:59]} 2. Nf3 {[%clk 0:02:59]}  Nf6 {[%clk 0:02:59]} 3. Bf4 {[%clk 0:02:53]}  e6 {[%clk 0:02:59]} 4. e3 {[%clk 0:02:51]}  Be7 {[%clk 0:02:55]} 5. Be2 {[%clk 0:02:45]}  b6 {[%clk 0:02:54]} 6. Nbd2 {[%clk 0:02:45]}  Bb7 {[%clk 0:02:55]} 7. h3 {[%clk 0:02:45]}  O-O {[%clk 0:02:54]} 8. O-O {[%clk 0:02:42]}  Ne4 {[%clk 0:02:52]} 9. Nxe4 {[%clk 0:02:33]}  Bxe4 {[%clk 0:02:45]} 10. Nd2 {[%clk 0:02:30]}  Bb7 {[%clk 0:02:44]} 11. Bf3 {[%clk 0:02:31]}  Bxf3 {[%clk 0:02:41]} 12. Qxf3 {[%clk 0:02:32]}  d5 {[%clk 0:02:31]} 13. c4 {[%clk 0:02:19]}  c6 {[%clk 0:02:31]} 14. cxd5 {[%clk 0:02:19]}  exd5 {[%clk 0:02:30]} 15. Rac1 {[%clk 0:02:17]}  Bd6 {[%clk 0:02:30]} 16. Rfe1 {[%clk 0:02:11]}  a5 {[%clk 0:02:22]} 17. Qg3 {[%clk 0:01:59]}  Bxf4 {[%clk 0:02:20]} 18. exf4 {[%clk 0:02:00]}  Qd7 {[%clk 0:02:07]} 19. Nf3 {[%clk 0:01:45]}  Qb7 {[%clk 0:02:03]} 20. Re6 {[%clk 0:01:35]}  b5 {[%clk 0:01:58]} 21. Ne5 {[%clk 0:01:33]}  Ra6 {[%clk 0:01:54]} 22. h4 {[%clk 0:01:23]}  Nd7 {[%clk 0:01:36]} 23. Re7 {[%clk 0:01:19]}  g6 {[%clk 0:01:18]} 24. Nxg6 {[%clk 0:01:10]}  Rf7 {[%clk 0:01:00]} 25. Ne5+ {[%clk 0:00:49]}  Kf8 {[%clk 0:00:58]} 26. Rxf7+ {[%clk 0:00:49]}  Ke8 {[%clk 0:00:58]} 27. Qg8+ {[%clk 0:00:50]}  Nf8 {[%clk 0:00:57]} 28. Qxf8# {[%clk 0:00:51]} 1-0


[Site "https://www.chess.com"]

[Event "Titled Tuesday Blitz February 15 Late 2022"]
[White "Xiong, Jeffery"]
[Black "Petrosyan, Manuel"]
[WhiteFideId "2047640"]
[BlackFideId "13300857"]
[WhiteElo "2727"]
[BlackElo "2592"]
[Result "1-0"]
[Round "03"]
[TimeControl "180+1"]
[Date "2022.02.15"]
[WhiteClock "0:00:38"]
[BlackClock "0:00:05"]

1. d4 {[%clk 0:03:00]}  Nf6 {[%clk 0:02:58]} 2. c4 {[%clk 0:03:01]}  e6 {[%clk 0:02:59]} 3. Nc3 {[%clk 0:03:01]}  Bb4 {[%clk 0:02:58]} 4. Nf3 {[%clk 0:03:01]}  d5 {[%clk 0:02:57]} 5. Qa4+ {[%clk 0:03:01]}  Nc6 {[%clk 0:02:57]} 6. Bd2 {[%clk 0:03:02]}  dxc4 {[%clk 0:02:50]} 7. e3 {[%clk 0:03:01]}  Bd7 {[%clk 0:02:49]} 8. Qc2 {[%clk 0:02:31]}  Na5 {[%clk 0:02:49]} 9. Ne5 {[%clk 0:02:30]}  O-O {[%clk 0:02:46]} 10. Nxc4 {[%clk 0:02:20]}  c5 {[%clk 0:02:27]} 11. dxc5 {[%clk 0:02:19]}  Nxc4 {[%clk 0:02:23]} 12. Bxc4 {[%clk 0:02:19]}  Rc8 {[%clk 0:02:17]} 13. a3 {[%clk 0:02:19]}  Bxc5 {[%clk 0:02:17]} 14. Be2 {[%clk 0:02:08]}  Bc6 {[%clk 0:02:12]} 15. O-O {[%clk 0:02:08]}  Bd6 {[%clk 0:02:00]} 16. Rfd1 {[%clk 0:02:07]}  Nd5 {[%clk 0:01:49]} 17. Bf3 {[%clk 0:01:42]}  Nxc3 {[%clk 0:01:21]} 18. Bxc3 {[%clk 0:01:43]}  Bxf3 {[%clk 0:01:21]} 19. gxf3 {[%clk 0:01:44]}  Qe7 {[%clk 0:00:41]} 20. Qe4 {[%clk 0:01:42]}  f5 {[%clk 0:00:31]} 21. Qa4 {[%clk 0:01:10]}  Rcd8 {[%clk 0:00:17]} 22. Kh1 {[%clk 0:01:07]}  a6 {[%clk 0:00:12]} 23. Qc4 {[%clk 0:01:01]}  Rf7 {[%clk 0:00:10]} 24. Rd2 {[%clk 0:00:51]}  Re8 {[%clk 0:00:09]} 25. Rad1 {[%clk 0:00:51]}  Bb8 {[%clk 0:00:10]} 26. Qa4 {[%clk 0:00:44]}  Ref8 {[%clk 0:00:05]} 27. Rd7 {[%clk 0:00:41]}  Qg5 {[%clk 0:00:05]} 28. Rg1 {[%clk 0:00:38]} 1-0


[Site "https://www.chess.com"]

[Event "Titled Tuesday Blitz February 15 Late 2022"]
[White "Yurovskykh, Oleksandr"]
[Black "Ozdemir, Serhan Berat"]
[WhiteFideId "14134020"]
[BlackFideId "6374611"]
[WhiteElo "2292"]
[BlackElo "1920"]
[Result "0-1"]
[Round "03"]
[TimeControl "180+1"]
[Date "2022.02.16"]
[WhiteClock "0:00:02"]
[BlackClock "0:00:04"]

1. d4 {[%clk 0:03:00]}  Nf6 {[%clk 0:02:58]} 2. Nf3 {[%clk 0:02:59]}  g6 {[%clk 0:02:58]} 3. Bg5 {[%clk 0:02:59]}  Bg7 {[%clk 0:02:58]} 4. Nbd2 {[%clk 0:02:59]}  d5 {[%clk 0:02:51]} 5. e3 {[%clk 0:02:59]}  O-O {[%clk 0:02:49]} 6. Be2 {[%clk 0:02:59]}  c5 {[%clk 0:02:48]} 7. c3 {[%clk 0:02:59]}  Nc6 {[%clk 0:02:35]} 8. O-O {[%clk 0:02:58]}  b6 {[%clk 0:02:34]} 9. Qa4 {[%clk 0:02:57]}  Bd7 {[%clk 0:02:23]} 10. Qa3 {[%clk 0:02:54]}  Ne4 {[%clk 0:01:51]} 11. Nxe4 {[%clk 0:02:54]}  dxe4 {[%clk 0:01:51]} 12. Nd2 {[%clk 0:02:54]}  h6 {[%clk 0:01:48]} 13. Bh4 {[%clk 0:02:53]}  g5 {[%clk 0:01:46]} 14. Bg3 {[%clk 0:02:53]}  f5 {[%clk 0:01:45]} 15. dxc5 {[%clk 0:02:44]}  e5 {[%clk 0:01:43]} 16. f3 {[%clk 0:02:28]}  f4 {[%clk 0:01:37]} 17. Bf2 {[%clk 0:02:28]}  exf3 {[%clk 0:01:17]} 18. Bxf3 {[%clk 0:02:21]}  g4 {[%clk 0:00:58]} 19. Bd5+ {[%clk 0:02:19]}  Kh8 {[%clk 0:00:57]} 20. e4 {[%clk 0:02:18]}  Qg5 {[%clk 0:00:53]} 21. Kh1 {[%clk 0:01:23]}  f3 {[%clk 0:00:45]} 22. Rad1 {[%clk 0:01:22]}  fxg2+ {[%clk 0:00:44]} 23. Kxg2 {[%clk 0:01:22]}  h5 {[%clk 0:00:39]} 24. cxb6 {[%clk 0:00:58]}  axb6 {[%clk 0:00:38]} 25. Qd6 {[%clk 0:00:58]}  Rad8 {[%clk 0:00:16]} 26. Nc4 {[%clk 0:00:34]}  g3 {[%clk 0:00:12]} 27. hxg3 {[%clk 0:00:17]}  Bh3+ {[%clk 0:00:12]} 28. Kxh3 {[%clk 0:00:16]}  Rxd6 {[%clk 0:00:13]} 29. Nxd6 {[%clk 0:00:17]}  Qg4+ {[%clk 0:00:12]} 30. Kh2 {[%clk 0:00:16]}  Rxf2+ {[%clk 0:00:07]} 31. Rxf2 {[%clk 0:00:16]}  Qxd1 {[%clk 0:00:07]} 32. Nf7+ {[%clk 0:00:15]}  Kh7 {[%clk 0:00:08]} 33. Ng5+ {[%clk 0:00:15]}  Kg6 {[%clk 0:00:08]} 34. Bf7+ {[%clk 0:00:07]}  Kxg5 {[%clk 0:00:06]} 35. Rf5+ {[%clk 0:00:07]}  Kh6 {[%clk 0:00:05]} 36. Rxh5+ {[%clk 0:00:03]}  Qxh5+ {[%clk 0:00:05]} 37. Bxh5 {[%clk 0:00:04]}  Kxh5 {[%clk 0:00:06]} 38. Kg2 {[%clk 0:00:04]}  Kg4 {[%clk 0:00:06]} 39. b4 {[%clk 0:00:04]}  b5 {[%clk 0:00:06]} 40. Kf2 {[%clk 0:00:03]}  Bf8 {[%clk 0:00:06]} 41. a3 {[%clk 0:00:03]}  Bh6 {[%clk 0:00:05]} 42. Ke2 {[%clk 0:00:03]}  Bc1 {[%clk 0:00:06]} 43. Kd3 {[%clk 0:00:01]}  Bxa3 {[%clk 0:00:06]} 44. c4 {[%clk 0:00:02]}  Nxb4+ {[%clk 0:00:04]} 45. Kc3 {[%clk 0:00:02]}  bxc4 {[%clk 0:00:03]} 46. Kxc4 {[%clk 0:00:03]}  Kxg3 {[%clk 0:00:04]} 47. Kc5 {[%clk 0:00:03]}  Kf4 {[%clk 0:00:04]} 48. Kd6 {[%clk 0:00:02]}  Kxe4 {[%clk 0:00:04]} 0-1


[Site "https://www.chess.com"]

[Event "Titled Tuesday Blitz February 15 Late 2022"]
[White "Zhigalko, Sergei"]
[Black "Kaasen, Tor Fredrik"]
[WhiteFideId "13502956"]
[BlackFideId "1516647"]
[WhiteElo "2662"]
[BlackElo "2335"]
[Result "1-0"]
[Round "03"]
[TimeControl "180+1"]
[Date "2022.02.15"]
[WhiteClock "0:01:38"]
[BlackClock "0:01:04"]

1. e4 {[%clk 0:03:00]}  e6 {[%clk 0:02:59]} 2. d4 {[%clk 0:03:01]}  d5 {[%clk 0:03:00]} 3. e5 {[%clk 0:03:01]}  c5 {[%clk 0:03:00]} 4. c3 {[%clk 0:03:02]}  Nc6 {[%clk 0:03:01]} 5. Nf3 {[%clk 0:03:02]}  Qb6 {[%clk 0:02:56]} 6. a3 {[%clk 0:03:02]}  c4 {[%clk 0:02:56]} 7. Nbd2 {[%clk 0:03:02]}  Bd7 {[%clk 0:02:56]} 8. b3 {[%clk 0:03:02]}  cxb3 {[%clk 0:02:55]} 9. Nxb3 {[%clk 0:03:03]}  Na5 {[%clk 0:02:53]} 10. Nxa5 {[%clk 0:03:03]}  Qxa5 {[%clk 0:02:54]} 11. Bd2 {[%clk 0:03:04]}  Qa4 {[%clk 0:02:53]} 12. Qb1 {[%clk 0:03:02]}  b6 {[%clk 0:02:53]} 13. Bd3 {[%clk 0:03:02]}  Ne7 {[%clk 0:02:48]} 14. O-O {[%clk 0:03:02]}  Nf5 {[%clk 0:02:37]} 15. h4 {[%clk 0:02:37]}  Be7 {[%clk 0:02:31]} 16. h5 {[%clk 0:02:27]}  h6 {[%clk 0:02:17]} 17. g3 {[%clk 0:02:12]}  O-O-O {[%clk 0:01:52]} 18. Rc1 {[%clk 0:02:07]}  Kb8 {[%clk 0:01:32]} 19. c4 {[%clk 0:02:07]}  Bc8 {[%clk 0:01:19]} 20. c5 {[%clk 0:01:46]}  Nxd4 {[%clk 0:01:05]} 21. Nxd4 {[%clk 0:01:46]}  Qxd4 {[%clk 0:01:05]} 22. Be3 {[%clk 0:01:47]}  Qxe5 {[%clk 0:01:04]} 23. Bf4 {[%clk 0:01:38]} 1-0


[Site "https://www.chess.com"]

[Event "Titled Tuesday Blitz February 15 Late 2022"]
[White "volunteers1998"]
[Black "Abdyzhapar, Asylbek"]
[BlackFideId "13800337"]
[WhiteElo "2272"]
[BlackElo "2331"]
[Result "0-1"]
[Round "03"]
[TimeControl "180+1"]
[Date "2022.02.16"]
[WhiteClock "0:00:03"]
[BlackClock "0:00:15"]

1. e4 {[%clk 0:02:59]}  c5 {[%clk 0:02:59]} 2. Nf3 {[%clk 0:02:59]}  d6 {[%clk 0:02:59]} 3. d4 {[%clk 0:02:57]}  cxd4 {[%clk 0:03:00]} 4. Nxd4 {[%clk 0:02:58]}  Nf6 {[%clk 0:03:00]} 5. Nc3 {[%clk 0:02:55]}  g6 {[%clk 0:03:00]} 6. Be3 {[%clk 0:02:54]}  Bg7 {[%clk 0:03:00]} 7. f3 {[%clk 0:02:51]}  O-O {[%clk 0:03:00]} 8. g4 {[%clk 0:02:46]}  Nc6 {[%clk 0:02:58]} 9. Qd2 {[%clk 0:02:43]}  Be6 {[%clk 0:02:58]} 10. O-O-O {[%clk 0:02:40]}  Ne5 {[%clk 0:02:49]} 11. Kb1 {[%clk 0:02:37]}  Rc8 {[%clk 0:02:45]} 12. h4 {[%clk 0:02:35]}  Bc4 {[%clk 0:02:36]} 13. h5 {[%clk 0:02:27]}  Bxf1 {[%clk 0:02:36]} 14. Rhxf1 {[%clk 0:02:20]}  Nc4 {[%clk 0:02:34]} 15. Qc1 {[%clk 0:02:11]}  Qb6 {[%clk 0:02:27]} 16. hxg6 {[%clk 0:02:03]}  fxg6 {[%clk 0:02:00]} 17. Bg1 {[%clk 0:01:55]}  Nxb2 {[%clk 0:01:32]} 18. Qxb2 {[%clk 0:01:53]}  Rxc3 {[%clk 0:01:31]} 19. Qxb6 {[%clk 0:01:50]}  axb6 {[%clk 0:01:31]} 20. Ne6 {[%clk 0:01:49]}  Rfc8 {[%clk 0:01:30]} 21. Nxg7 {[%clk 0:01:46]}  Kxg7 {[%clk 0:01:29]} 22. Rd2 {[%clk 0:01:38]}  Kf7 {[%clk 0:01:25]} 23. Bxb6 {[%clk 0:01:32]}  h5 {[%clk 0:01:23]} 24. gxh5 {[%clk 0:01:29]}  Nxh5 {[%clk 0:01:23]} 25. Bd4 {[%clk 0:01:24]}  R3c4 {[%clk 0:01:20]} 26. f4 {[%clk 0:01:21]}  Ng3 {[%clk 0:01:15]} 27. Re1 {[%clk 0:01:17]}  Rb4+ {[%clk 0:01:14]} 28. Kc1 {[%clk 0:01:11]}  Rcc4 {[%clk 0:01:05]} 29. c3 {[%clk 0:01:08]}  Rb5 {[%clk 0:01:05]} 30. e5 {[%clk 0:00:59]}  Nf5 {[%clk 0:00:59]} 31. exd6 {[%clk 0:00:59]}  exd6 {[%clk 0:00:59]} 32. Rh1 {[%clk 0:00:48]}  Nxd4 {[%clk 0:00:45]} 33. Rxd4 {[%clk 0:00:46]}  Rxc3+ {[%clk 0:00:45]} 34. Kd2 {[%clk 0:00:44]}  Rc6 {[%clk 0:00:45]} 35. Rh7+ {[%clk 0:00:40]}  Kf6 {[%clk 0:00:45]} 36. Rd7 {[%clk 0:00:38]}  Ke6 {[%clk 0:00:29]} 37. Rg7 {[%clk 0:00:35]}  Kf5 {[%clk 0:00:29]} 38. Rd7 {[%clk 0:00:33]}  Rb2+ {[%clk 0:00:25]} 39. Kd3 {[%clk 0:00:34]}  Rb1 {[%clk 0:00:21]} 40. Kd2 {[%clk 0:00:31]}  Rb2+ {[%clk 0:00:19]} 41. Kd3 {[%clk 0:00:30]}  Rxa2 {[%clk 0:00:19]} 42. R4xd6 {[%clk 0:00:23]}  Rxd6+ {[%clk 0:00:19]} 43. Rxd6 {[%clk 0:00:22]}  Rb2 {[%clk 0:00:18]} 44. Rd4 {[%clk 0:00:20]}  b5 {[%clk 0:00:18]} 45. Ke3 {[%clk 0:00:18]}  Rb3+ {[%clk 0:00:17]} 46. Ke2 {[%clk 0:00:17]}  Kg4 {[%clk 0:00:17]} 47. Rd6 {[%clk 0:00:16]}  Kf5 {[%clk 0:00:17]} 48. Rd4 {[%clk 0:00:14]}  Rc3 {[%clk 0:00:17]} 49. Rd5+ {[%clk 0:00:13]}  Kxf4 {[%clk 0:00:17]} 50. Rxb5 {[%clk 0:00:12]}  g5 {[%clk 0:00:16]} 51. Kf2 {[%clk 0:00:09]}  g4 {[%clk 0:00:14]} 52. Rb4+ {[%clk 0:00:07]}  Kg5 {[%clk 0:00:14]} 53. Rb8 {[%clk 0:00:05]}  Rc2+ {[%clk 0:00:14]} 54. Kg1 {[%clk 0:00:05]}  Kh4 {[%clk 0:00:14]} 55. Rh8+ {[%clk 0:00:04]}  Kg3 {[%clk 0:00:14]} 56. Rf8 {[%clk 0:00:03]}  Rc1+ {[%clk 0:00:14]} 57. Rf1 {[%clk 0:00:02]}  Rxf1+ {[%clk 0:00:14]} 58. Kxf1 {[%clk 0:00:03]}  Kh2 {[%clk 0:00:15]} 0-1


[Site "https://www.chess.com"]